Workbook

Sheet калькуляция блюда
A1: КАЛЬКУЛЯЦИЯ БЛЮД
A2: наименование | B2: цена | C2: рыба тушенная с овощами | D2: хлеб в/с | E2: чай с сахаром | F2: салат из моркови с сахаром | G2: котлеты рубленные из говядины | H2: гуляш из говядины | I2: каша гречневая рассыпчатая | J2: суп рассольник на м/к бульоне | K2: каша вязкая рисовая(молочная) | L2: каша молочная пшенная | M2: рис отварной | N2: макароны отварные | O2: котлеты рубленные из птицы | P2: картофельное пюре | Q2: запеканка из творога | R2: какао с молоком | S2: плов из птицы | T2: омлет натуральный | U2: салат из свеклы отварной | V2: пельмени отварные | W2: салат из свежей капусты | X2: жаркое из птицы | Y2: щи из св капусты с картоф на м/к бульоне | Z2: суп картоф гороховый на м/к бульоне | AA2: компот из сухофруктов | AB2: каша молочная манная | AC2: суп картоф с макарон изделиями на м/к бульоне | AD2: каша вязкая геркулесовая | AE2: тефтели мясные с рисом | AF2: яблоко | AG2: борщ из св капусты на м/к бульоне | AH2: груша | AI2: каша молочная ячневая | AJ2: кисель
A3: горох | B3: 43 | Z3: 0.02
A4: грудка | B4: 319.89 | O4: 0.076 | S4: 0.09 | X4: 0.096
A5: какао | B5: 177.04 | R5: 0.004
A6: капуста | B6: 12 | W6: 0.068 | Y6: 0.062 | AG6: 0.025
A7: картофель | B7: 16.76 | J7: 0.107 | P7: 0.205 | X7: 0.123 | Y7: 0.04 | Z7: 0.107 | AC7: 0.107 | AG7: 0.026
A8: кисель | B8: 68.91 | AJ8: 0.02
A9: компот | B9: 95 | AA9: 0.02
A10: гречка | B10: 104.01 | I10: 0.052
A11: манка | B11: 49.87 | AB11: 0.03
A12: перловка | B12: 35.3 | J12: 0.01
A13: макароны | B13: 41.8 | N13: 0.06 | AC13: 0.01
A14: лук | B14: 20 | C14: 0.005 | G14: 0.007 | H14: 0.018 | J14: 0.006 | S14: 0.011 | X14: 0.012 | Y14: 0.012 | Z14: 0.012 | AC14: 0.012 | AE14: 0.013 | AG14: 0.012
A15: рыба минтай | B15: 128.84 | C15: 0.105
A16: масло раст | B16: 92.37 | C16: 0.003 | G16: 0.003 | H16: 0.005 | J16: 0.005 | S16: 0.005 | U16: 0.002 | W16: 0.003 | X16: 0.004 | Y16: 0.005 | Z16: 0.003 | AC16: 0.002 | AE16: 0.002 | AG16: 0.003
A17: масло сливочное | B17: 580.79 | I17: 0.005 | K17: 0.005 | L17: 0.005 | M17: 0.006 | N17: 0.005 | O17: 0.003 | P17: 0.006 | Q17: 0.002 | T17: 0.004 | V17: 0.005 | AB17: 0.005 | AD17: 0.005 | AI17: 0.005
A18: морковь | B18: 17 | C18: 0.016 | F18: 0.073 | J18: 0.013 | S18: 0.016 | W18: 0.013 | Y18: 0.013 | Z18: 0.013 | AC18: 0.012 | AG18: 0.012
A19: мука | B19: 37.5 | H19: 0.004 | Q19: 0.005
A20: мясо | B20: 378.05 | G20: 0.075 | H20: 0.107 | AE20: 0.052
A21: пельмени | B21: 260 | V21: 0.14
A22: пшено | B22: 47.63 | L22: 0.033
A23: рис | B23: 78.8 | K23: 0.033 | M23: 0.064 | S23: 0.057 | AE23: 0.005
A24: сахар | B24: 67.6 | E24: 0.015 | F24: 0.001 | K24: 0.003 | L24: 0.003 | Q24: 0.003 | R24: 0.02 | W24: 0.002 | AA24: 0.02 | AB24: 0.003 | AD24: 0.003 | AI24: 0.002 | AJ24: 0.015
A25: свекла | B25: 16 | U25: 0.073 | AG25: 0.05
A26: молоко | B26: 60.98 | G26: 0.015 | K26: 0.1 | L26: 0.072 | O26: 0.011 | P26: 0.028 | R26: 0.1 | T26: 0.03 | AB26: 0.1 | AI26: 0.1
A27: булочка | B27: 8.92
A28: соль | B28: 15.5 | C28: 0.001 | G28: 0.001 | H28: 0.002 | I28: 0.001 | J28: 0.001 | K28: 0.001 | L28: 0.001 | M28: 0.001 | N28: 0.001 | O28: 0.001 | P28: 0.001 | S28: 0.001 | T28: 0.001 | V28: 0.001 | W28: 0.001 | X28: 0.001 | Y28: 0.001 | Z28: 0.001 | AB28: 0.001 | AC28: 0.001 | AD28: 0.001 | AE28: 0.001 | AG28: 0.001 | AI28: 0.001
A29: яблоки свежие | B29: 69.15 | AF29: 0.15
A30: творог | B30: 355.6 | Q30: 0.047
A31: томат паста | B31: 55.95 | H31: 0.012 | S31: 0.005 | AG31: 0.005
A32: хлеб в/с(кг) | B32: 67.01 | D32: 0.05
A33: яйцо | B33: 7.3 | Q33: 0.1 | T33: 2
A34: чай | B34: 463.95 | E34: 0.001
A35: сметана | B35: 190.09 | J35: 0.01 | Y35: 0.005 | AG35: 0.01
A36: груша | B36: 80 | AH36: 0.12
A37: геркулес | AD37: 0.033
A38: ячневая | B38: 29.73 | AI38: 0.033
A39: солен огурцы | J39: 0.022
A40: стоимость блюда | C40: =B14*C14+B15*C15+B16*C16+B18*C18+B28*C28 -> 14.19 | D40: =D32*B32 -> 3.35 | E40: =E24*B24+E34*B34 -> 1.48 | F40: =F18*B18+F24*B24 -> 1.31 | G40: =B14*G14+B16*G16+B20*G20+B26*G26+B28*G28 -> 29.70 | H40: =H14*B14+H16*B16+H18*B18+H19*B19+H20*B20+H28*B28+H31*B31 -> 42.13 | I40: =I10*B10+I17*B17+I28*B28 -> 8.33 | J40: =J7*B7+J12*B12+J14*B14+J16*B16+J18*B18+J35*J28*B28 -> 2.95 | K40: =K17*B17+K23*B23+K24*B24+K26*B26+K28*B28 -> 11.82 | L40: =L17*B17+L22*B22+L24*B24+L26*B26+L28*B28 -> 9.08 | M40: =M17*B17+M23*B23+M28*B28 -> 8.54 | N40: =N13*B13+N17*B17+N28*B28 -> 5.43 | O40: =O4*B4+O17*B17+O26*B26+O28*B28 -> 26.74 | P40: =P7*B7+P17*B17+P26*B26+P28*B28 -> 8.64 | Q40: =Q17*B17+Q19*B19+Q24*B24+Q30*B30+Q33*B33 -> 19.00 | R40: =R24*B24+R26*B26+R5*B5 -> 8.16 | S40: =S4*B4+S14*B14+S16*B16+S18*B18+S23*B23+S31*B31+S28*B28 -> 34.53 | T40: =T17*B17+T26*B26+T28*B28+T33*B33 -> 18.77 | U40: =U16*B16+U25*B25 -> 1.35 | V40: =V17*B17+V21*B21+V28*B28 -> 39.32 | W40: =W6*B6+W16*B16+W24*B24+W28*B28 -> 1.24 | X40: =X4*B4+X7*B7+X14*B14+X16*B16*X28*B28 -> 33.02 | Y40: =Y6*B6+Y14*B14+Y16*B16+Y18*B18+Y28*B28+Y35*B35 -> 2.63 | Z40: =Z3*B3+Z7*B7+Z14*B14+Z16*B16+Z18*B18+Z28*B28 -> 3.41 | AA40: =AA9*B9+AA24*B24 -> 3.25 | AB40: =AB11*B11+AB17*B17+AB24*B24+AB26*B26+AB28*B28 -> 10.72 | AC40: =AC7*B7+AC13*B13+AC14*B14+AC16*B16+AC18*B18+AC28*B28 -> 2.86 | AD40: =AD17*B17+AD24*B24+AD28*B28+AD37*B37 -> 3.12 | AE40: =AE14*B14+AE16*B16+AE20*B20+AE23*B23+AE28*B28 -> 20.51 | AF40: =AF29*B29 -> 10.37 | AG40: =AG6*B6+AG7*B7+AG14*B14+AG16*B16+AG18*B18+AG25*B25+AG28*B28+AG31*B31+AG35*B35 -> 4.45 | AH40: =AH36*B36 -> 9.60 | AI40: =AI17*B17+AI24*B24+AI26*B26+AI28*B28+AI38*B38 -> 10.13 | AJ40: =AJ8*B8+AJ24*B24 -> 2.39

Sheet меню
I1: Утверждаю
H2: Руководитель отдела образования
H3: Сармановского МР РТ
H4: ______________Идрисова Г.Я.
A6: ПРИМЕРНОЕ 12 ДНЕВНОЕ МЕНЮ ДЛЯ обучающихся 5-11 класов школ Сармановского муниципального района
A7: на 1 полугодие 2022-2023 учебного года
B8: Наименование блюда | D8: Выход блюда (гр) | E8: Пищевые вещества(г) | H8: Энергетическая ценность (ккал) | I8: Минеральные вещества (мг) | K8: Витамин(мг) | L8: № тех. карты
C9: Примерная стоимость блюда (руб) | E9: Б | F9: Ж | G9: У | I9: Са | J9: Р | K9: С
A11: 1 неделя - понедельник
A12: горячий завтрак | B12: Салат из моркови с сахаром | C12: 1.31 | D12: 60 | E12: 1.08 | F12: 0.18 | G12: 8.62 | H12: 40.4 | I12: 24.28 | J12: 44 | K12: 6.25 | L12: ТТК 38
B13: Котлеты рубленные из говядины | C13: 29.7 | D13: 75 | E13: 12.38 | F13: 18.15 | G13: 10.74 | H13: 258 | I13: 32.36 | J13: 41.84 | K13: 0.26 | L13: ТТК 268
B14: Каша гречневая рассыпчатая с маслом | C14: 8.33 | D14: 180 | E14: 10.3 | F14: 7.31 | G14: 46.36 | H14: 292.5 | I14: 17.78 | J14: 250.2 | K14: 0 | L14: ТТК 302
B15: Чай с сахаром | C15: 1.48 | D15: 200/15 | E15: 0.07 | F15: 0.02 | G15: 15 | H15: 60 | I15: 11.1 | J15: 7.5 | K15: 0.03 | L15: ТТК 376
B16: Хлеб пшеничный в/с | C16: 3.35 | D16: 50 | E16: 2.72 | F16: 0.49 | G16: 0.49 | H16: 74.6 | I16: 14.43 | J16: 19.5 | K16: 0 | L16: ТТК 61
A17: обед | B17: Щи из свежей капусты с картофелем на м/к бульоне | C17: 2.63 | D17: 250 | E17: 1.75 | F17: 4.89 | G17: 8.49 | H17: 84.75 | I17: 43.33 | J17: 47.63 | K17: 18.46 | L17: ТТК 187
B18: Чай с сахаром | C18: 1.48 | D18: 200/15 | E18: 0.07 | F18: 0.02 | G18: 15 | H18: 60 | I18: 11.1 | J18: 7.5 | K18: 0.03 | L18: ТТК 376
B19: Хлеб пшеничный в/с | C19: 3.35 | D19: 50 | E19: 2.72 | F19: 0.49 | G19: 0.49 | H19: 74.6 | I19: 14.43 | J19: 19.5 | K19: 0 | L19: ТТК 61
B20: Фрукты (яблоко свежее) | C20: 10.37 | D20: 150 | E20: 0.6 | F20: 0.6 | G20: 14.7 | H20: 70.3 | I20: 24 | J20: 13.5 | K20: 15 | L20: ТТК 338
B21: ИТОГО | C21: =SUM(C12:C20) -> 62 | E21: =SUM(E12:E20) -> 31.69 | F21: 32.15 | G21: 119.89 | H21: 1015.15 | I21: 192.81 | J21: 451.17 | K21: 40.03
A22: 1 неделя - вторник
A23: завтрак | B23: Запеканка из творога | C23: 19 | D23: 50 | E23: 13.92 | F23: 9 | G23: 16.2 | H23: 139.6 | I23: 113.2 | J23: 172.46 | K23: 0.37 | L23: ТТК 469
B24: Кисель | C24: 2.39 | D24: 200 | E24: 0.2 | F24: 0 | G24: 32.6 | H24: 132 | I24: 9 | J24: 4.29 | K24: 30 | L24: ТТК 122
B25: Хлеб пшеничный в/с | C25: 3.35 | D25: 50 | E25: 2.72 | F25: 0.49 | G25: 0.49 | H25: 74.6 | I25: 14.43 | J25: 19.5 | K25: 0 | L25: ТТК 61
A26: обед | B26: Жаркое из птицы | C26: 33.02 | D26: 50/150 | E26: 17.21 | F26: 4.67 | G26: 13.72 | H26: 165.63 | I26: 19.44 | J26: 210.63 | K26: 5.61 | L26: ТТК 436
B27: Чай с сахаром | C27: 1.48 | D27: 200/15 | E27: 0.07 | F27: 0.02 | G27: 15 | H27: 60 | I27: 11.1 | J27: 7.5 | K27: 0.03 | L27: ТТК 376
B28: Хлеб пшеничный в/с | C28: 3.35 | D28: 50 | E28: 2.72 | F28: 0.49 | G28: 0.49 | H28: 74.6 | I28: 14.43 | J28: 19.5 | K28: 0 | L28: ТТК 61
B29: ИТОГО | C29: =SUM(C23:C28) -> 62.59 | E29: 36.84 | F29: 14.67 | G29: 78.5 | H29: 646.43 | I29: 181.6 | J29: 433.88 | K29: 36.01
A30: 1 неделя -среда
A31: горячий завтрак | B31: Салат из свеклы отварной | C31: 1.35 | D31: 60 | E31: 0.86 | F31: 3.65 | G31: 5.02 | H31: 56.34 | I31: 21.09 | J31: 24.58 | K31: 5.7 | L31: ТТК 33
B32: Гуляш из говядины | C32: 42.13 | D32: 50/75 | E32: 14.55 | F32: 16.79 | G32: 2.89 | H32: 221 | I32: 21.81 | J32: 154 | K32: 0.92 | L32: ТТК 260
B33: Макароны отварные | C33: 5.43 | D33: 180 | E33: 6.55 | F33: 6.94 | G33: 36.54 | H33: 234.8 | I33: 14.56 | J33: 7.5 | K33: 0 | L33: ТТК 202
B34: Чай с сахаром | C34: 1.48 | D34: 200/15 | E34: 0.07 | F34: 0.02 | G34: 15 | H34: 60 | I34: 11.1 | J34: 7.5 | K34: 0.03 | L34: ТТК 376
B35: Хлеб пшеничный в/с | C35: 3.35 | D35: 50 | E35: 2.72 | F35: 0.49 | G35: 0.49 | H35: 74.6 | I35: 14.43 | J35: 19.5 | K35: 0 | L35: ТТК 61
A36: обед | B36: Суп картофельный гороховый на м/к бульоне | C36: 3.41 | D36: 250 | E36: 5.49 | F36: 5.28 | G36: 16.33 | H36: 134.75 | I36: 38.08 | J36: 87.18 | K36: 5.81 | L36: ТТК 206
B37: Компот из сухофруктов | C37: 3.25 | D37: 200 | E37: 0.66 | F37: 0.09 | G37: 32.01 | H37: 132.8 | I37: 32.48 | J37: 1.2 | K37: 0.73 | L37: ТТК 349
B38: Хлеб пшеничный в/с | C38: 3.35 | D38: 50 | E38: 2.72 | F38: 0.49 | G38: 0.49 | H38: 74.6 | I38: 14.43 | J38: 19.5 | K38: 0 | L38: ТТК 61
B39: ИТОГО | C39: =SUM(C31:C38) -> 63.75 | E39: 33.62 | F39: 33.75 | G39: 108.77 | H39: 988.89 | I39: 167.98 | J39: 320.96 | K39: 13.19
A40: 1 неделя - четверг
A41: завтрак | B41: Каша пшенная молочная | C41: 9.08 | D41: 180 | E41: 12.92 | F41: 13.33 | G41: 49.55 | H41: 368 | I41: 190 | J41: 186 | K41: 1.44 | L41: ТТК 11
B42: Чай с сахаром | C42: 1.48 | D42: 200/15 | E42: 0.07 | F42: 0.02 | G42: 15 | H42: 60 | I42: 11.1 | J42: 7.5 | K42: 0.03 | L42: ТТК 376
B43: Хлеб пшеничный в/с | C43: 3.35 | D43: 50 | E43: 2.72 | F43: 0.49 | G43: 0.49 | H43: 74.6 | I43: 14.43 | J43: 19.5 | K43: 0 | L43: ТТК 61
A44: обед | B44: Салат из свежей капусты | C44: 1.24 | D44: 60 | E44: 0.86 | F44: 3.65 | G44: 5.02 | H44: 56.34 | I44: 21.09 | J44: 24.58 | K44: 5.7 | L44: ТТК 43
B45: Котлета рубленная из птицы | C45: 26.74 | D45: 80 | E45: 9.7 | F45: 13.92 | G45: 7.89 | H45: 196 | I45: 56 | J45: 105.9 | K45: 0.26 | L45: ТТК 307
B46: Пюре картофельное | C46: 8.64 | D46: 180 | E46: 3.67 | F46: 5.76 | G46: 24.53 | H46: 164.7 | I46: 44.37 | J46: 103.91 | K46: 21.8 | L46: ТТК 694
B47: Чай с сахаром | C47: 1.48 | D47: 200/15 | E47: 0.07 | F47: 0.02 | G47: 15 | H47: 60 | I47: 11.1 | J47: 7.5 | K47: 0.03 | L47: ТТК 376
B48: Хлеб пшеничный в/с | C48: 3.35 | D48: 50 | E48: 2.72 | F48: 0.49 | G48: 0.49 | H48: 74.6 | I48: 14.43 | J48: 19.5 | K48: 0 | L48: ТТК 61
B49: ИТОГО | C49: =SUM(C41:C48) -> 55.36 | E49: =SUM(E41:E48) -> 32.73 | F49: 37.68 | G49: 117.97 | H49: 1054.24 | I49: 362.52 | J49: 474.39 | K49: 29.26
A50: 1 неделя - пятница
A51: горячий завтрак | B51: рыба тушенная с овощами | C51: 14.19 | D51: 75 | E51: 13.87 | F51: 7.85 | G51: 6.53 | H51: 150 | I51: 52.11 | J51: 238.46 | K51: 3.35 | L51: ТТК 486
B52: Рис отварной | C52: 8.54 | D52: 180 | E52: 4.38 | F52: 6.44 | G52: 44 | H52: 251.6 | I52: 2.88 | J52: 44.6 | K52: 0 | L52: ТТК 304
B53: Чай с сахаром | C53: 1.48 | D53: 200/15 | E53: 0.07 | F53: 0.02 | G53: 15 | H53: 60 | I53: 11.1 | J53: 7.5 | K53: 0.03 | L53: ТТК 376
B54: Хлеб пшеничный в/с | C54: 3.35 | D54: 50 | E54: 2.72 | F54: 0.49 | G54: 0.49 | H54: 74.6 | I54: 14.43 | J54: 19.5 | K54: 0 | L54: ТТК 61
A55: обед | B55: Суп картофельный с макаронными изделиями на м/к бульоне | C55: 2.86 | D55: 250 | E55: 2.69 | F55: 2.84 | G55: 17.14 | H55: 104.75 | I55: 24.6 | J55: 66.65 | K55: 8.25 | L55: ТТК 208
B56: Чай с сахаром | C56: 1.48 | D56: 200/15 | E56: 0.07 | F56: 0.02 | G56: 15 | H56: 60 | I56: 11.1 | J56: 7.5 | K56: 0.03 | L56: ТТК 376
B57: Хлеб пшеничный в/с | C57: 3.35 | D57: 50 | E57: 2.72 | F57: 0.49 | G57: 0.49 | H57: 74.6 | I57: 14.43 | J57: 19.5 | K57: 0 | L57: ТТК 61
B59: ИТОГО | C59: =SUM(C51:C58) -> 35.25 | E59: 26.52 | F59: 18.15 | G59: 98.65 | H59: 775.55 | I59: 130.65 | J59: 403.71 | K59: 11.66
A60: 1 неделя -суббота
A61: горячий завтрак | B61: каша молочная ячневая | C61: 10.13 | D61: 200/5 | E61: 7.31 | F61: 10.98 | G61: 39.2 | H61: 286 | I61: 162.26 | J61: 0 | K61: 1.17 | L61: ТТК 182
B62: Чай с сахаром | C62: 1.48 | D62: 200/15 | E62: 0.07 | F62: 0.02 | G62: 15 | H62: 60 | I62: 11.1 | J62: 7.5 | K62: 0.03 | L62: ТТК 376
B63: Хлеб пшеничный в/с | C63: 3.35 | D63: 50 | E63: 2.72 | F63: 0.49 | G63: 0.49 | H63: 74.6 | I63: 14.43 | J63: 19.5 | K63: 0 | L63: ТТК 61
B65: ИТОГО | C65: =SUM(C61:C64) -> 14.96 | E65: =SUM(E61:E63) -> 10.1 | F65: 11.49 | G65: 54.69 | H65: 420.6 | I65: 187.79 | J65: 27 | K65: 1.2
A66: 2 неделя - понедельник
A67: горячий завтрак | B67: Салат из свежей капусты | C67: 1.24 | D67: 60 | E67: 0.86 | F67: 3.65 | G67: 5.02 | H67: 56.34 | I67: 21.09 | J67: 24.58 | K67: 5.7 | L67: ТТК 43
B68: Тефтели мясные с рисом | C68: 20.51 | D68: 55 | E68: 7.58 | F68: 7.84 | G68: 7.95 | H68: 125.36 | I68: 14.88 | J68: 15.89 | K68: 0.44 | L68: ТТК 287
B69: Каша гречневая рассыпчатая с маслом | C69: 8.33 | D69: 180 | E69: 10.3 | F69: 7.31 | G69: 46.36 | H69: 292.5 | I69: 17.78 | J69: 250.2 | K69: 0 | L69: ТТК 302
B70: Чай с сахаром | C70: 1.48 | D70: 200/15 | E70: 0.07 | F70: 0.02 | G70: 15 | H70: 60 | I70: 11.1 | J70: 7.5 | K70: 0.03 | L70: ТТК 376
B71: Хлеб пшеничный в/с | C71: 3.35 | D71: 50 | E71: 2.72 | F71: 0.49 | G71: 0.49 | H71: 74.6 | I71: 14.43 | J71: 19.5 | K71: 0 | L71: ТТК 61
A72: обед | B72: Суп картофельный гороховый на м/к бульоне | C72: 3.41 | D72: 250 | E72: 5.49 | F72: 5.28 | G72: 16.33 | H72: 134.75 | I72: 38.08 | J72: 87.18 | K72: 5.81 | L72: ТТК 206
B73: Чай с сахаром | C73: 1.48 | D73: 200/15 | E73: 0.07 | F73: 0.02 | G73: 15 | H73: 60 | I73: 11.1 | J73: 7.5 | K73: 0.03 | L73: ТТК 376
B74: Хлеб пшеничный в/с | C74: 3.35 | D74: 50 | E74: 2.72 | F74: 0.49 | G74: 0.49 | H74: 74.6 | I74: 14.43 | J74: 19.5 | K74: 0 | L74: ТТК 61
B75: ИТОГО | C75: =SUM(C67:C74) -> 43.15 | E75: 29.81 | F75: 25.1 | G75: 106.64 | H75: 878.15 | I75: 142.89 | J75: 431.85 | K75: 12.01
A77: 2 неделя - вторник
A78: завтрак | B78: Омлет натуральныйс маслом сливочным | C78: 18.77 | D78: 100/4 | E78: 14.27 | F78: 22.16 | G78: 2.65 | H78: 267.93 | I78: 114.2 | J78: 260.5 | K78: 0.25 | L78: ТТК 438
B79: Чай с сахаром | C79: 1.48 | D79: 200/15 | E79: 0.07 | F79: 0.02 | G79: 15 | H79: 60 | I79: 11.1 | J79: 7.5 | K79: 0.03 | L79: ТТК 376
B80: Хлеб пшеничный в/с | C80: 3.35 | D80: 50 | E80: 2.72 | F80: 0.49 | G80: 0.49 | H80: 74.6 | I80: 14.43 | J80: 19.5 | K80: 0 | L80: ТТК 61
A81: обед | B81: Салат из свеклы отварной | C81: 1.35 | D81: 60 | E81: 0.86 | F81: 3.65 | G81: 5.02 | H81: 56.34 | I81: 21.09 | J81: 24.58 | K81: 5.7 | L81: ТТК 33
B82: Плов из птицы | C82: 34.53 | D82: 50/150 | E82: 14 | F82: 19 | G82: 42 | H82: 377 | I82: 22 | J82: 204 | K82: 0.62 | L82: ТТК 304
B83: Чай с сахаром | C83: 1.48 | D83: 200/15 | E83: 0.07 | F83: 0.02 | G83: 15 | H83: 60 | I83: 11.1 | J83: 7.5 | K83: 0.03 | L83: ТТК 376
B84: Хлеб пшеничный в/с | C84: 3.35 | D84: 50 | E84: 2.72 | F84: 0.49 | G84: 0.49 | H84: 74.6 | I84: 14.43 | J84: 19.5 | K84: 0 | L84: ТТК 61
B85: ИТОГО | C85: =SUM(C78:C84) -> 64.31 | E85: 34.71 | F85: 45.83 | G85: 80.65 | H85: 970.47 | I85: 208.35 | J85: 543.08 | K85: 6.63
A86: 2 неделя - среда
A87: горячий завтрак
B88: рыба тушенная с овощами | C88: 14.19 | D88: 75 | E88: 13.87 | F88: 7.85 | G88: 6.53 | H88: 150 | I88: 52.11 | J88: 238.46 | K88: 3.35 | L88: ТТК 486
B89: Пюре картофельное | C89: 8.64 | D89: 180 | E89: 3.67 | F89: 5.76 | G89: 24.53 | H89: 164.7 | I89: 44.37 | J89: 103.91 | K89: 21.8 | L89: ТТК 694
B90: Чай с сахаром | C90: 1.48 | D90: 200/15 | E90: 0.07 | F90: 0.02 | G90: 15 | H90: 60 | I90: 11.1 | J90: 7.5 | K90: 0.03 | L90: ТТК 376
B91: Хлеб пшеничный в/с | C91: 3.35 | D91: 50 | E91: 2.72 | F91: 0.49 | G91: 0.49 | H91: 74.6 | I91: 14.43 | J91: 19.5 | K91: 0 | L91: ТТК 61
A92: обед | B92: Борщ с капустой и картофелем на м/к бульоне | C92: 4.45 | D92: 250 | E92: 1.81 | F92: 4.91 | G92: 125.25 | H92: 102.5 | I92: 44.38 | J92: 53.23 | K92: 10.29 | L92: ТТК 170
B93: Чай с сахаром | C93: 1.48 | D93: 200/15 | E93: 0.07 | F93: 0.02 | G93: 15 | H93: 60 | I93: 11.1 | J93: 7.5 | K93: 0.03 | L93: ТТК 376
B94: Хлеб пшеничный в/с | C94: 3.35 | D94: 50 | E94: 2.72 | F94: 0.49 | G94: 0.49 | H94: 74.6 | I94: 14.43 | J94: 19.5 | K94: 0 | L94: ТТК 61
B95: ИТОГО | C95: =SUM(C88:C94) -> 36.94 | E95: =SUM(E87:E94) -> 24.93 | F95: 19.54 | G95: 187.29 | H95: 686.4 | I95: 191.92 | J95: 449.6 | K95: 35.5
A96: 2 неделя - четверг
A97: горячий завтрак | B97: Салат из моркови с сахаром | C97: 1.31 | D97: 60 | E97: 1.08 | F97: 0.18 | G97: 8.62 | H97: 40.4 | I97: 24.28 | J97: 44 | K97: 6.25 | L97: ТТК 38
B98: Котлета рубленная из птицы | C98: 26.74 | D98: 80 | E98: 9.7 | F98: 13.92 | G98: 7.89 | H98: 196 | I98: 56 | J98: 105.9 | K98: 0.26 | L98: ТТК 307
B99: Макароны отварные | C99: 5.43 | D99: 180 | E99: 6.55 | F99: 6.94 | G99: 36.54 | H99: 234.8 | I99: 14.56 | J99: 7.5 | K99: 0 | L99: ТТК 202
B100: Какао с молоком | C100: 8.16 | D100: 200 | E100: 4.08 | F100: 3.54 | G100: 17.58 | H100: 118.6 | I100: 152.22 | J100: 90 | K100: 1.59 | L100: ТТК382
B101: Хлеб пшеничный в/с | C101: 3.35 | D101: 50 | E101: 2.72 | F101: 0.49 | G101: 0.49 | H101: 74.6 | I101: 14.43 | J101: 19.5 | K101: 0 | L101: ТТК 61
A102: обед | B102: Суп рассольник на м/к бульоне | C102: 2.95 | D102: 250 | E102: 2.1 | F102: 5.11 | G102: 16.59 | H102: 120.75 | I102: 26.45 | J102: 71.95 | K102: 7.54 | L102: ТТК 197
B103: Чай с сахаром | C103: 1.48 | D103: 200/15 | E103: 0.07 | F103: 0.02 | G103: 15 | H103: 60 | I103: 11.1 | J103: 7.5 | K103: 0.03 | L103: ТТК 376
B104: Хлеб пшеничный в/с | C104: 3.35 | D104: 50 | E104: 2.72 | F104: 0.49 | G104: 0.49 | H104: 74.6 | I104: 14.43 | J104: 19.5 | K104: 0 | L104: ТТК 61
B105: ИТОГО | C105: =SUM(C97:C104) -> 52.77 | E105: 29.02 | F105: 30.69 | G105: 103.2 | H105: 919.75 | I105: 313.47 | J105: 365.85 | K105: 15.67
A106: 2 неделя - пятница
A107: горячий завтрак | B107: Фрукты (груша свежая) | C107: 9.6 | D107: 120 | E107: 0.6 | F107: 0.46 | G107: 14.7 | H107: 68.26 | I107: 17.5 | J107: 17.3 | K107: 7.5 | L107: ТТК 338
B108: Каша рисовая молочная | C108: 11.82 | D108: 200/5 | E108: 5.1 | F108: 10.72 | G108: 33.42 | H108: 251 | I108: 130.09 | J108: 67 | K108: 1.17 | L108: ТТК 182
B109: Чай с сахаром | C109: 1.48 | D109: 200/15 | E109: 0.07 | F109: 0.02 | G109: 15 | H109: 60 | I109: 11.1 | J109: 7.5 | K109: 0.03 | L109: ТТК 376
B110: Хлеб пшеничный в/с | C110: 3.35 | D110: 50 | E110: 2.72 | F110: 0.49 | G110: 0.49 | H110: 74.6 | I110: 14.43 | J110: 19.5 | K110: 0 | L110: ТТК 61
A111: обед | B111: Суп картофельный с макаронными изделиями на м/к бульоне | C111: 2.86 | D111: 250 | E111: 2.69 | F111: 2.84 | G111: 17.14 | H111: 104.75 | I111: 24.6 | J111: 66.65 | K111: 8.25 | L111: ТТК 208
B112: Компот из сухофруктов | C112: 3.25 | D112: 200 | E112: 0.66 | F112: 0.09 | G112: 32.01 | H112: 132.8 | I112: 32.48 | J112: 1.2 | K112: 0.73 | L112: ТТК 349
B113: Хлеб пшеничный в/с | C113: 3.35 | D113: 50 | E113: 2.72 | F113: 0.49 | G113: 0.49 | H113: 74.6 | I113: 14.43 | J113: 19.5 | K113: 0 | L113: ТТК 61
B114: ИТОГО | C114: =SUM(C107:C113) -> 35.71 | E114: 14.56 | F114: 15.11 | G114: 113.25 | H114: 766.01 | I114: 244.63 | J114: 198.65 | K114: 17.68
A115: 2 неделя - суббота
A116: горячий завтрак | B116: Каша молочная манная | C116: 10.72 | D116: 200/5 | E116: 6.11 | F116: 10.72 | G116: 32.38 | H116: 251 | I116: 133.77 | J116: 67 | K116: 1.17 | L116: ТТК 181
B117: Чай с сахаром | C117: 1.48 | D117: 200/15 | E117: 0.07 | F117: 0.02 | G117: 15 | H117: 60 | I117: 11.1 | J117: 7.5 | K117: 0.03 | L117: ТТК 376
B118: Хлеб пшеничный в/с | C118: 3.35 | D118: 50 | E118: 2.72 | F118: 0.49 | G118: 0.49 | H118: 74.6 | I118: 14.43 | J118: 19.5 | K118: 0 | L118: ТТК 61
B120: ИТОГО | C120: =SUM(C116:C119) -> 15.55 | E120: =SUM(E116:E119) -> 8.9 | F120: 11.23 | G120: 47.87 | H120: 385.6 | I120: 159.3 | J120: 94 | K120: 1.2
B122: ИТОГО за 12 дней | C122: =C21+C29+C39+C49+C59+C65+C75+C85+C95+C105+C114+C120 -> 542.34 | E122: 313.43 | F122: 295.39 | G122: 1217.37 | H122: 9507.24 | I122: 2483.91 | J122: 4194.14 | K122: 220.04
B124: средняя величина за 1 день | C124: =C122/12 -> 45.195 | E124: 26.11916667 | F124: 24.61583333 | G124: 101.4475 | H124: 792.27 | I124: 206.9925 | J124: 349.5116667 | K124: 18.33666667

Sheet потребность
A1: КАЛЬКУЛЯЦИЯ БЛЮД
A2: наименование | B2: рыба тушенная с овощами | C2: хлеб в/с | D2: чай с сахаром | E2: салат из моркови с сахаром | F2: котлеты рубленные из говядины | G2: гуляш из говядины | H2: каша гречневая рассыпчатая | I2: суп рассольник на м/к бульоне | J2: каша вязкая рисовая(молочная) | K2: каша молочная пшенная | L2: рис отварной | M2: макароны отварные | N2: котлеты рубленные из птицы | O2: картофельное пюре | P2: запеканка из творога | Q2: какао с молоком | R2: плов из птицы | S2: омлет натуральный | T2: салат из свеклы отварной | U2: пельмени отварные | V2: салат из свежей капусты | W2: жаркое из птицы | X2: щи из св капусты с картоф на м/к бульоне | Y2: суп картоф гороховый на м/к бульоне | Z2: компот из сухофруктов | AA2: каша молочная манная | AB2: суп картоф с макарон изделиями на м/к бульоне | AC2: ячневая каша | AD2: тефтели мясные с рисом | AE2: яблоко | AF2: борщ из св капусты на м/к бульоне | AG2: груша | AH2: кисель | AI2: итого на 1 ребенка на 2 недели | AJ2: всего на 16 недель | AK2: дж 1 300 | AL2: дж 2 430 | AM2: дж гимназия 300 | AN2: сарман сош 280 | AO2: каран 6 | AP2: сарман гимназия 352 | AQ2: азалак 19 | AR2: алекс 35 | AS2: альмэт 60 | AT2: большенуркей 71 | AU2: юлтимер 15 | AV2: карашай 23 | AW2: илексаз 22 | AX2: кавзияк 19 | AY2: кутемели 9 | AZ2: лэке 16 | BA2: леш-тамак 36 | BB2: муртамак 30 | BC2: петровка 90 | BD2: ст.кашир 38 | BE2: сарайлы 15 | BF2: сакловбаш 34 | BG2: ст.мензелябаш 33
A3: количество раз за 2 недели | B3: 2 | C3: 22 | D3: 18 | E3: 2 | F3: 1 | G3: 1 | H3: 2 | I3: 1 | J3: 1 | K3: 1 | L3: 1 | M3: 2 | N3: 2 | O3: 2 | P3: 1 | Q3: 1 | R3: 1 | S3: 1 | T3: 2 | U3: 1 | V3: 2 | W3: 1 | X3: 1 | Y3: 2 | Z3: 2 | AA3: 1 | AB3: 2 | AC3: 1 | AD3: 1 | AE3: 1 | AF3: 1 | AG3: 1 | AH3: 1
A4: горох | Y4: 0.04 | AI4: =SUM(B4:AH4) -> 0.04 | AJ4: =AI4*8 -> 0.32 | AK4: =AJ4*300 -> 96 | AL4: =AJ4*430 -> 137.6 | AM4: =AJ4*300 -> 96 | AN4: =AJ4*280 -> 89.6 | AO4: =AJ4*6 -> 1.92 | AP4: =AJ4*352 -> 112.64 | AQ4: =AJ4*19 -> 6.08 | AR4: =AJ4*35 -> 11.2 | AS4: =AJ4*60 -> 19.2 | AT4: =AJ4*71 -> 22.72 | AU4: =AJ4*15 -> 4.8 | AV4: =AJ4*23 -> 7.36 | AW4: =AJ4*22 -> 7.04 | AX4: =AJ4*19 -> 6.08 | AY4: =AJ4*9 -> 2.88 | AZ4: =AJ4*16 -> 5.12 | BA4: =AJ4*36 -> 11.52 | BB4: =AJ4*30 -> 9.6 | BC4: =AJ4*90 -> 28.8 | BD4: =AJ4*38 -> 12.16 | BE4: =AJ4*15 -> 4.8 | BF4: =AJ4*34 -> 10.88 | BG4: =AJ4*33 -> 10.56
A5: грудка | N5: 0.152 | R5: 0.09 | W5: 0.096 | AI5: 0.338 | AJ5: =AI5*8 -> 2.704 | AK5: =AJ5*300 -> 811.2 | AL5: =AJ5*430 -> 1162.72 | AM5: =AJ5*300 -> 811.2 | AN5: =AJ5*280 -> 757.12 | AO5: =AJ5*6 -> 16.224 | AP5: =AJ5*352 -> 951.808 | AQ5: =AJ5*19 -> 51.376 | AR5: =AJ5*35 -> 94.64 | AS5: =AJ5*60 -> 162.24 | AT5: =AJ5*71 -> 191.984 | AU5: =AJ5*15 -> 40.56 | AV5: =AJ5*23 -> 62.192 | AW5: =AJ5*22 -> 59.488 | AX5: =AJ5*19 -> 51.376 | AY5: =AJ5*9 -> 24.336 | AZ5: =AJ5*16 -> 43.264 | BA5: =AJ5*36 -> 97.344 | BB5: =AJ5*30 -> 81.12 | BC5: =AJ5*90 -> 243.36 | BD5: =AJ5*38 -> 102.752 | BE5: =AJ5*15 -> 40.56 | BF5: =AJ5*34 -> 91.936 | BG5: =AJ5*33 -> 89.232
A6: какао | Q6: 0.004 | AI6: 0.004 | AJ6: 0.032 | AK6: 9.6 | AL6: 13.76 | AM6: 9.6 | AN6: 8.96 | AO6: 0.192 | AP6: 11.264 | AQ6: 0.608 | AR6: 1.12 | AS6: 1.92 | AT6: 2.272 | AU6: 0.48 | AV6: 0.736 | AW6: 0.704 | AX6: 0.608 | AY6: 0.288 | AZ6: 0.512 | BA6: 1.152 | BB6: 0.96 | BC6: 2.88 | BD6: 1.216 | BE6: 0.48 | BF6: 1.088 | BG6: 1.056
A7: капуста | V7: 0.136 | X7: 0.062 | AF7: 0.025 | AI7: 0.223 | AJ7: 1.784 | AK7: 535.2 | AL7: 767.12 | AM7: 535.2 | AN7: 499.52 | AO7: 10.704 | AP7: 627.968 | AQ7: 33.896 | AR7: 62.44 | AS7: 107.04 | AT7: 126.664 | AU7: 26.76 | AV7: 41.032 | AW7: 39.248 | AX7: 33.896 | AY7: 16.056 | AZ7: 28.544 | BA7: 64.224 | BB7: 53.52 | BC7: 160.56 | BD7: 67.792 | BE7: 26.76 | BF7: 60.656 | BG7: 58.872
A8: картофель | I8: 0.107 | O8: 0.41 | W8: 0.123 | X8: 0.04 | Y8: 0.25 | AB8: 0.25 | AF8: 0.026 | AI8: 1.206 | AJ8: 9.648 | AK8: 2894.4 | AL8: 4148.64 | AM8: 2894.4 | AN8: 2701.44 | AO8: 57.888 | AP8: 3396.096 | AQ8: 183.312 | AR8: 337.68 | AS8: 578.88 | AT8: 685.008 | AU8: 144.72 | AV8: 221.904 | AW8: 212.256 | AX8: 183.312 | AY8: 86.832 | AZ8: 154.368 | BA8: 347.328 | BB8: 289.44 | BC8: 868.32 | BD8: 366.624 | BE8: 144.72 | BF8: 328.032 | BG8: 318.384
A9: кисель | AH9: 0.02 | AI9: 0.02 | AJ9: 0.16 | AK9: 48 | AL9: 68.8 | AM9: 48 | AN9: 44.8 | AO9: 0.96 | AP9: 56.32 | AQ9: 3.04 | AR9: 5.6 | AS9: 9.6 | AT9: 11.36 | AU9: 2.4 | AV9: 3.68 | AW9: 3.52 | AX9: 3.04 | AY9: 1.44 | AZ9: 2.56 | BA9: 5.76 | BB9: 4.8 | BC9: 14.4 | BD9: 6.08 | BE9: 2.4 | BF9: 5.44 | BG9: 5.28
A10: компот | Z10: 0.04 | AI10: 0.04 | AJ10: 0.32 | AK10: 96 | AL10: 137.6 | AM10: 96 | AN10: 89.6 | AO10: 1.92 | AP10: 112.64 | AQ10: 6.08 | AR10: 11.2 | AS10: 19.2 | AT10: 22.72 | AU10: 4.8 | AV10: 7.36 | AW10: 7.04 | AX10: 6.08 | AY10: 2.88 | AZ10: 5.12 | BA10: 11.52 | BB10: 9.6 | BC10: 28.8 | BD10: 12.16 | BE10: 4.8 | BF10: 10.88 | BG10: 10.56
A11: гречка | H11: 0.104 | AI11: 0.104 | AJ11: 0.832 | AK11: 249.6 | AL11: 357.76 | AM11: 249.6 | AN11: 232.96 | AO11: 4.992 | AP11: 292.864 | AQ11: 15.808 | AR11: 29.12 | AS11: 49.92 | AT11: 59.072 | AU11: 12.48 | AV11: 19.136 | AW11: 18.304 | AX11: 15.808 | AY11: 7.488 | AZ11: 13.312 | BA11: 29.952 | BB11: 24.96 | BC11: 74.88 | BD11: 31.616 | BE11: 12.48 | BF11: 28.288 | BG11: 27.456
A12: манка | AA12: 0.03 | AI12: 0.03 | AJ12: 0.24 | AK12: 72 | AL12: 103.2 | AM12: 72 | AN12: 67.2 | AO12: 1.44 | AP12: 84.48 | AQ12: 4.56 | AR12: 8.4 | AS12: 14.4 | AT12: 17.04 | AU12: 3.6 | AV12: 5.52 | AW12: 5.28 | AX12: 4.56 | AY12: 2.16 | AZ12: 3.84 | BA12: 8.64 | BB12: 7.2 | BC12: 21.6 | BD12: 9.12 | BE12: 3.6 | BF12: 8.16 | BG12: 7.92
A13: перловка | I13: 0.01 | AI13: 0.01 | AJ13: 0.08 | AK13: 24 | AL13: 34.4 | AM13: 24 | AN13: 22.4 | AO13: 0.48 | AP13: 28.16 | AQ13: 1.52 | AR13: 2.8 | AS13: 4.8 | AT13: 5.68 | AU13: 1.2 | AV13: 1.84 | AW13: 1.76 | AX13: 1.52 | AY13: 0.72 | AZ13: 1.28 | BA13: 2.88 | BB13: 2.4 | BC13: 7.2 | BD13: 3.04 | BE13: 1.2 | BF13: 2.72 | BG13: 2.64
A14: макароны | M14: 0.12 | AB14: 0.02 | AI14: 0.14 | AJ14: 1.12 | AK14: 336 | AL14: 481.6 | AM14: 336 | AN14: 313.6 | AO14: 6.72 | AP14: 394.24 | AQ14: 21.28 | AR14: 39.2 | AS14: 67.2 | AT14: 79.52 | AU14: 16.8 | AV14: 25.76 | AW14: 24.64 | AX14: 21.28 | AY14: 10.08 | AZ14: 17.92 | BA14: 40.32 | BB14: 33.6 | BC14: 100.8 | BD14: 42.56 | BE14: 16.8 | BF14: 38.08 | BG14: 36.96
A15: лук | B15: 0.01 | F15: 0.007 | G15: 0.018 | I15: 0.006 | R15: 0.011 | W15: 0.012 | X15: 0.012 | Y15: 0.024 | AB15: 0.02 | AD15: 0.013 | AF15: 0.012 | AI15: 0.145 | AJ15: 1.16 | AK15: 348 | AL15: 498.8 | AM15: 348 | AN15: 324.8 | AO15: 6.96 | AP15: 408.32 | AQ15: 22.04 | AR15: 40.6 | AS15: 69.6 | AT15: 82.36 | AU15: 17.4 | AV15: 26.68 | AW15: 25.52 | AX15: 22.04 | AY15: 10.44 | AZ15: 18.56 | BA15: 41.76 | BB15: 34.8 | BC15: 104.4 | BD15: 44.08 | BE15: 17.4 | BF15: 39.44 | BG15: 38.28
A16: минтай | B16: 0.21 | AI16: 0.21 | AJ16: 1.68 | AK16: 504 | AL16: 722.4 | AM16: 504 | AN16: 470.4 | AO16: 10.08 | AP16: 591.36 | AQ16: 31.92 | AR16: 58.8 | AS16: 100.8 | AT16: 119.28 | AU16: 25.2 | AV16: 38.64 | AW16: 36.96 | AX16: 31.92 | AY16: 15.12 | AZ16: 26.88 | BA16: 60.48 | BB16: 50.4 | BC16: 151.2 | BD16: 63.84 | BE16: 25.2 | BF16: 57.12 | BG16: 55.44
A17: масло раст | B17: 0.006 | F17: 0.003 | G17: 0.005 | I17: 0.003 | R17: 0.005 | T17: 0.004 | V17: 0.006 | W17: 0.004 | X17: 0.005 | Y17: 0.006 | AB17: 0.004 | AD17: 0.002 | AF17: 0.003 | AI17: 0.056 | AJ17: 0.448 | AK17: 134.4 | AL17: 192.64 | AM17: 134.4 | AN17: 125.44 | AO17: 2.688 | AP17: 157.696 | AQ17: 8.512 | AR17: 15.68 | AS17: 26.88 | AT17: 31.808 | AU17: 6.72 | AV17: 10.304 | AW17: 9.856 | AX17: 8.512 | AY17: 4.032 | AZ17: 7.168 | BA17: 16.128 | BB17: 13.44 | BC17: 40.32 | BD17: 17.024 | BE17: 6.72 | BF17: 15.232 | BG17: 14.784
A18: масло сливочное | H18: 0.01 | J18: 0.005 | K18: 0.005 | L18: 0.005 | M18: 0.01 | N18: 0.006 | O18: 0.012 | P18: 0.002 | S18: 0.004 | U18: 0.005 | AA18: 0.005 | AC18: 0.005 | AI18: 0.074 | AJ18: 0.592 | AK18: 177.6 | AL18: 254.56 | AM18: 177.6 | AN18: 165.76 | AO18: 3.552 | AP18: 208.384 | AQ18: 11.248 | AR18: 20.72 | AS18: 35.52 | AT18: 42.032 | AU18: 8.88 | AV18: 13.616 | AW18: 13.024 | AX18: 11.248 | AY18: 5.328 | AZ18: 9.472 | BA18: 21.312 | BB18: 17.76 | BC18: 53.28 | BD18: 22.496 | BE18: 8.88 | BF18: 20.128 | BG18: 19.536
A19: морковь | B19: 0.032 | E19: 0.146 | I19: 0.013 | R19: 0.016 | V19: 0.026 | X19: 0.013 | Y19: 0.026 | AB19: 0.02 | AF19: 0.012 | AI19: 0.304 | AJ19: 2.432 | AK19: 729.6 | AL19: 1045.76 | AM19: 729.6 | AN19: 680.96 | AO19: 14.592 | AP19: 856.064 | AQ19: 46.208 | AR19: 85.12 | AS19: 145.92 | AT19: 172.672 | AU19: 36.48 | AV19: 55.936 | AW19: 53.504 | AX19: 46.208 | AY19: 21.888 | AZ19: 38.912 | BA19: 87.552 | BB19: 72.96 | BC19: 218.88 | BD19: 92.416 | BE19: 36.48 | BF19: 82.688 | BG19: 80.256
A20: мука | G20: 0.004 | P20: 0.005 | AI20: 0.009 | AJ20: 0.072 | AK20: 21.6 | AL20: 30.96 | AM20: 21.6 | AN20: 20.16 | AO20: 0.432 | AP20: 25.344 | AQ20: 1.368 | AR20: 2.52 | AS20: 4.32 | AT20: 5.112 | AU20: 1.08 | AV20: 1.656 | AW20: 1.584 | AX20: 1.368 | AY20: 0.648 | AZ20: 1.152 | BA20: 2.592 | BB20: 2.16 | BC20: 6.48 | BD20: 2.736 | BE20: 1.08 | BF20: 2.448 | BG20: 2.376
A21: мясо | F21: 0.075 | G21: 0.107 | AD21: 0.052 | AI21: 0.234 | AJ21: 1.872 | AK21: 561.6 | AL21: 804.96 | AM21: 561.6 | AN21: 524.16 | AO21: 11.232 | AP21: 658.944 | AQ21: 35.568 | AR21: 65.52 | AS21: 112.32 | AT21: 132.912 | AU21: 28.08 | AV21: 43.056 | AW21: 41.184 | AX21: 35.568 | AY21: 16.848 | AZ21: 29.952 | BA21: 67.392 | BB21: 56.16 | BC21: 168.48 | BD21: 71.136 | BE21: 28.08 | BF21: 63.648 | BG21: 61.776
A22: пельмени | U22: 0.14 | AI22: 0.14 | AJ22: 1.12 | AK22: 336 | AL22: 481.6 | AM22: 336 | AN22: 313.6 | AO22: 6.72 | AP22: 394.24 | AQ22: 21.28 | AR22: 39.2 | AS22: 67.2 | AT22: 79.52 | AU22: 16.8 | AV22: 25.76 | AW22: 24.64 | AX22: 21.28 | AY22: 10.08 | AZ22: 17.92 | BA22: 40.32 | BB22: 33.6 | BC22: 100.8 | BD22: 42.56 | BE22: 16.8 | BF22: 38.08 | BG22: 36.96
A23: пшено | K23: 0.033 | AI23: 0.033 | AJ23: 0.264 | AK23: 79.2 | AL23: 113.52 | AM23: 79.2 | AN23: 73.92 | AO23: 1.584 | AP23: 92.928 | AQ23: 5.016 | AR23: 9.24 | AS23: 15.84 | AT23: 18.744 | AU23: 3.96 | AV23: 6.072 | AW23: 5.808 | AX23: 5.016 | AY23: 2.376 | AZ23: 4.224 | BA23: 9.504 | BB23: 7.92 | BC23: 23.76 | BD23: 10.032 | BE23: 3.96 | BF23: 8.976 | BG23: 8.712
A24: рис | J24: 0.033 | L24: 0.064 | R24: 0.057 | AD24: 0.005 | AI24: 0.159 | AJ24: 1.272 | AK24: 381.6 | AL24: 546.96 | AM24: 381.6 | AN24: 356.16 | AO24: 7.632 | AP24: 447.744 | AQ24: 24.168 | AR24: 44.52 | AS24: 76.32 | AT24: 90.312 | AU24: 19.08 | AV24: 29.256 | AW24: 27.984 | AX24: 24.168 | AY24: 11.448 | AZ24: 20.352 | BA24: 45.792 | BB24: 38.16 | BC24: 114.48 | BD24: 48.336 | BE24: 19.08 | BF24: 43.248 | BG24: 41.976
A25: сахар | D25: 0.27 | E25: 0.002 | J25: 0.003 | K25: 0.003 | P25: 0.003 | Q25: 0.02 | V25: 0.004 | Z25: 0.04 | AA25: 0.002 | AC25: 0.002 | AH25: 0.015 | AI25: 0.364 | AJ25: 2.912 | AK25: 873.6 | AL25: 1252.16 | AM25: 873.6 | AN25: 815.36 | AO25: 17.472 | AP25: 1025.024 | AQ25: 55.328 | AR25: 101.92 | AS25: 174.72 | AT25: 206.752 | AU25: 43.68 | AV25: 66.976 | AW25: 64.064 | AX25: 55.328 | AY25: 26.208 | AZ25: 46.592 | BA25: 104.832 | BB25: 87.36 | BC25: 262.08 | BD25: 110.656 | BE25: 43.68 | BF25: 99.008 | BG25: 96.096
A26: свекла | T26: 0.146 | AF26: 0.053 | AI26: 0.199 | AJ26: 1.592 | AK26: 477.6 | AL26: 684.56 | AM26: 477.6 | AN26: 445.76 | AO26: 9.552 | AP26: 560.384 | AQ26: 30.248 | AR26: 55.72 | AS26: 95.52 | AT26: 113.032 | AU26: 23.88 | AV26: 36.616 | AW26: 35.024 | AX26: 30.248 | AY26: 14.328 | AZ26: 25.472 | BA26: 57.312 | BB26: 47.76 | BC26: 143.28 | BD26: 60.496 | BE26: 23.88 | BF26: 54.128 | BG26: 52.536
A27: молоко | F27: 0.005 | J27: 0.1 | K27: 0.072 | N27: 0.022 | O27: 0.056 | Q27: 0.1 | S27: 0.03 | AA27: 0.1 | AC27: 0.1 | AI27: 0.585 | AJ27: 4.68 | AK27: 1404 | AL27: 2012.4 | AM27: 1404 | AN27: 1310.4 | AO27: 28.08 | AP27: 1647.36 | AQ27: 88.92 | AR27: 163.8 | AS27: 280.8 | AT27: 332.28 | AU27: 70.2 | AV27: 107.64 | AW27: 102.96 | AX27: 88.92 | AY27: 42.12 | AZ27: 74.88 | BA27: 168.48 | BB27: 140.4 | BC27: 421.2 | BD27: 177.84 | BE27: 70.2 | BF27: 159.12 | BG27: 154.44
A28: булочка | AI28: 0 | AJ28: 0 | AK28: 0 | AL28: 0 | AM28: 0 | AN28: 0 | AO28: 0 | AP28: 0 | AQ28: 0 | AR28: 0 | AS28: 0 | AT28: 0 | AU28: 0 | AV28: 0 | AW28: 0 | AX28: 0 | AY28: 0 | AZ28: 0 | BA28: 0 | BB28: 0 | BC28: 0 | BD28: 0 | BE28: 0 | BF28: 0 | BG28: 0
A29: соль | B29: 0.002 | F29: 0.001 | G29: 0.002 | H29: 0.002 | I29: 0.001 | J29: 0.001 | K29: 0.001 | L29: 0.001 | M29: 0.002 | N29: 0.002 | O29: 0.002 | R29: 0.001 | S29: 0.001 | U29: 0.001 | V29: 0.002 | W29: 0.001 | X29: 0.001 | Y29: 0.002 | AA29: 0.001 | AB29: 0.002 | AC29: 0.001 | AD29: 0.001 | AF29: 0.001 | AI29: 0.032 | AJ29: 0.256 | AK29: 76.8 | AL29: 110.08 | AM29: 76.8 | AN29: 71.68 | AO29: 1.536 | AP29: 90.112 | AQ29: 4.864 | AR29: 8.96 | AS29: 15.36 | AT29: 18.176 | AU29: 3.84 | AV29: 5.888 | AW29: 5.632 | AX29: 4.864 | AY29: 2.304 | AZ29: 4.096 | BA29: 9.216 | BB29: 7.68 | BC29: 23.04 | BD29: 9.728 | BE29: 3.84 | BF29: 8.704 | BG29: 8.448
A30: яблоки свежие | AE30: 0.15 | AI30: 0.15 | AJ30: 1.2 | AK30: 360 | AL30: 516 | AM30: 360 | AN30: 336 | AO30: 7.2 | AP30: 422.4 | AQ30: 22.8 | AR30: 42 | AS30: 72 | AT30: 85.2 | AU30: 18 | AV30: 27.6 | AW30: 26.4 | AX30: 22.8 | AY30: 10.8 | AZ30: 19.2 | BA30: 43.2 | BB30: 36 | BC30: 108 | BD30: 45.6 | BE30: 18 | BF30: 40.8 | BG30: 39.6
A31: творог | P31: 0.047 | AI31: 0.047 | AJ31: 0.376 | AK31: 112.8 | AL31: 161.68 | AM31: 112.8 | AN31: 105.28 | AO31: 2.256 | AP31: 132.352 | AQ31: 7.144 | AR31: 13.16 | AS31: 22.56 | AT31: 26.696 | AU31: 5.64 | AV31: 8.648 | AW31: 8.272 | AX31: 7.144 | AY31: 3.384 | AZ31: 6.016 | BA31: 13.536 | BB31: 11.28 | BC31: 33.84 | BD31: 14.288 | BE31: 5.64 | BF31: 12.784 | BG31: 12.408
A32: томат паста | G32: 0.012 | R32: 0.005 | AF32: 0.005 | AI32: 0.022 | AJ32: 0.176 | AK32: 52.8 | AL32: 75.68 | AM32: 52.8 | AN32: 49.28 | AO32: 1.056 | AP32: 61.952 | AQ32: 3.344 | AR32: 6.16 | AS32: 10.56 | AT32: 12.496 | AU32: 2.64 | AV32: 4.048 | AW32: 3.872 | AX32: 3.344 | AY32: 1.584 | AZ32: 2.816 | BA32: 6.336 | BB32: 5.28 | BC32: 15.84 | BD32: 6.688 | BE32: 2.64 | BF32: 5.984 | BG32: 5.808
A33: хлеб в/с(кг) | C33: 1.1 | AI33: 1.1 | AJ33: 8.8 | AK33: 2640 | AL33: 3784 | AM33: 2640 | AN33: 2464 | AO33: 52.8 | AP33: 3097.6 | AQ33: 167.2 | AR33: 308 | AS33: 528 | AT33: 624.8 | AU33: 132 | AV33: 202.4 | AW33: 193.6 | AX33: 167.2 | AY33: 79.2 | AZ33: 140.8 | BA33: 316.8 | BB33: 264 | BC33: 792 | BD33: 334.4 | BE33: 132 | BF33: 299.2 | BG33: 290.4
A34: яйцо | P34: 0.1 | S34: 2 | AI34: 2.1 | AJ34: 16.8 | AK34: 5040 | AL34: 7224 | AM34: 5040 | AN34: 4704 | AO34: 100.8 | AP34: 5913.6 | AQ34: 319.2 | AR34: 588 | AS34: 1008 | AT34: 1192.8 | AU34: 252 | AV34: 386.4 | AW34: 369.6 | AX34: 319.2 | AY34: 151.2 | AZ34: 268.8 | BA34: 604.8 | BB34: 504 | BC34: 1512 | BD34: 638.4 | BE34: 252 | BF34: 571.2 | BG34: 554.4
A35: чай | D35: 0.018 | AI35: 0.018 | AJ35: 0.144 | AK35: 43.2 | AL35: 61.92 | AM35: 43.2 | AN35: 40.32 | AO35: 0.864 | AP35: 50.688 | AQ35: 2.736 | AR35: 5.04 | AS35: 8.64 | AT35: 10.224 | AU35: 2.16 | AV35: 3.312 | AW35: 3.168 | AX35: 2.736 | AY35: 1.296 | AZ35: 2.304 | BA35: 5.184 | BB35: 4.32 | BC35: 12.96 | BD35: 5.472 | BE35: 2.16 | BF35: 4.896 | BG35: 4.752
A36: сметана | I36: 0.01 | X36: 0.005 | AF36: 0.01 | AI36: 0.025 | AJ36: 0.2 | AK36: 60 | AL36: 86 | AM36: 60 | AN36: 56 | AO36: 1.2 | AP36: 70.4 | AQ36: 3.8 | AR36: 7 | AS36: 12 | AT36: 14.2 | AU36: 3 | AV36: 4.6 | AW36: 4.4 | AX36: 3.8 | AY36: 1.8 | AZ36: 3.2 | BA36: 7.2 | BB36: 6 | BC36: 18 | BD36: 7.6 | BE36: 3 | BF36: 6.8 | BG36: 6.6
A37: геркулес | AI37: 0 | AJ37: 0 | AK37: 0 | AL37: 0 | AM37: 0 | AN37: 0 | AO37: 0 | AP37: 0 | AQ37: 0 | AR37: 0 | AS37: 0 | AT37: 0 | AU37: 0 | AV37: 0 | AW37: 0 | AX37: 0 | AY37: 0 | AZ37: 0 | BA37: 0 | BB37: 0 | BC37: 0 | BD37: 0 | BE37: 0 | BF37: 0 | BG37: 0
A38: груша | AG38: 0.12 | AI38: 0.12 | AJ38: 0.96 | AK38: 288 | AL38: 412.8 | AM38: 288 | AN38: 268.8 | AO38: 5.76 | AP38: 337.92 | AQ38: 18.24 | AR38: 33.6 | AS38: 57.6 | AT38: 68.16 | AU38: 14.4 | AV38: 22.08 | AW38: 21.12 | AX38: 18.24 | AY38: 8.64 | AZ38: 15.36 | BA38: 34.56 | BB38: 28.8 | BC38: 86.4 | BD38: 36.48 | BE38: 14.4 | BF38: 32.64 | BG38: 31.68
A39: ячневая | AC39: 0.033 | AI39: 0.033 | AJ39: 0.264 | AK39: 79.2 | AL39: 113.52 | AM39: 79.2 | AN39: 73.92 | AO39: 1.584 | AP39: 92.928 | AQ39: 5.016 | AR39: 9.24 | AS39: 15.84 | AT39: 18.744 | AU39: 3.96 | AV39: 6.072 | AW39: 5.808 | AX39: 5.016 | AY39: 2.376 | AZ39: 4.224 | BA39: 9.504 | BB39: 7.92 | BC39: 23.76 | BD39: 10.032 | BE39: 3.96 | BF39: 8.976 | BG39: 8.712
A40: солен огурцы(кг) | I40: 0.022 | AI40: 0.022 | AJ40: 0.176 | AK40: 52.8 | AL40: 75.68 | AM40: 52.8 | AN40: 49.28 | AO40: 1.056 | AP40: 61.952 | AQ40: 3.344 | AR40: 6.16 | AS40: 10.56 | AT40: 12.496 | AU40: 2.64 | AV40: 4.048 | AW40: 3.872 | AX40: 3.344 | AY40: 1.584 | AZ40: 2.816 | BA40: 6.336 | BB40: 5.28 | BC40: 15.84 | BD40: 6.688 | BE40: 2.64 | BF40: 5.984 | BG40: 5.808
AI41: 0 | AJ41: 0 | AK41: 0 | AL41: 0 | AM41: 0 | AN41: 0 | AO41: 0 | AP41: 0 | AQ41: 0 | AR41: 0 | AS41: 0 | AT41: 0 | AU41: 0 | AV41: 0 | AW41: 0 | AX41: 0 | AY41: 0 | AZ41: 0 | BA41: 0 | BB41: 0 | BC41: 0 | BD41: 0 | BE41: 0 | BF41: 0 | BG41: 0

Sheet молочка
A1: КАЛЬКУЛЯЦИЯ БЛЮД
A2: наименование | B2: котлеты рубленные из говядины | C2: каша гречневая рассыпчатая | D2: суп рассольник на м/к бульоне | E2: каша вязкая рисовая(молочная) | F2: каша молочная пшенная | G2: рис отварной | H2: макароны отварные | I2: котлеты рубленные из птицы | J2: картофельное пюре | K2: запеканка из творога | L2: какао с молоком | M2: омлет натуральный | N2: пельмени отварные | O2: щи из св капусты с картоф на м/к бульоне | P2: каша молочная манная | Q2: ячневая каша | R2: борщ из св капусты на м/к бульоне | S2: итого на 1 ребенка на 2 недели | T2: всего на 32 недель(год) | U2: дж 1 300 | V2: дж 2 430 | W2: дж гимназия 300 | X2: сарман сош 280 | Y2: каран 6 | Z2: сарман гимназия 352 | AA2: азалак 19 | AB2: алекс 35 | AC2: альмэт 60 | AD2: большенуркей 71 | AE2: юлтимер 15 | AF2: карашай 23 | AG2: илексаз 22 | AH2: кавзияк 19 | AI2: кутемели 9 | AJ2: лэке 16 | AK2: леш-тамак 36 | AL2: муртамак 30 | AM2: петровка 90 | AN2: ст.кашир 38 | AO2: сарайлы 15 | AP2: сакловбаш 34 | AQ2: ст.мензелябаш 33
A3: количество раз за 2 недели | B3: 1 | C3: 2 | D3: 1 | E3: 1 | F3: 1 | G3: 1 | H3: 2 | I3: 2 | J3: 2 | K3: 1 | L3: 1 | M3: 1 | N3: 1 | O3: 1 | P3: 1 | Q3: 1 | R3: 1
A4: масло сливочное | C4: 0.01 | E4: 0.005 | F4: 0.005 | G4: 0.005 | H4: 0.01 | I4: 0.006 | J4: 0.012 | K4: 0.002 | M4: 0.004 | N4: 0.005 | P4: 0.005 | Q4: 0.005 | S4: =SUM(B4:R4) -> 0.074 | T4: =S4*16 -> 1.184 | U4: =T4*300 -> 355.2 | V4: =T4*430 -> 509.12 | W4: =T4*300 -> 355.2 | X4: =T4*280 -> 331.52 | Y4: =T4*6 -> 7.104 | Z4: =T4*352 -> 416.768 | AA4: =T4*19 -> 22.496 | AB4: =T4*35 -> 41.44 | AC4: =T4*60 -> 71.04 | AD4: =T4*71 -> 84.064 | AE4: =T4*15 -> 17.76 | AF4: =T4*23 -> 27.232 | AG4: =T4*22 -> 26.048 | AH4: =T4*19 -> 22.496 | AI4: =T4*9 -> 10.656 | AJ4: =T4*16 -> 18.944 | AK4: =T4*36 -> 42.624 | AL4: =T4*30 -> 35.52 | AM4: =T4*90 -> 106.56 | AN4: =T4*38 -> 44.992 | AO4: =T4*15 -> 17.76 | AP4: =T4*34 -> 40.256 | AQ4: =T4*33 -> 39.072
A5: молоко | B5: 0.005 | E5: 0.1 | F5: 0.072 | I5: 0.022 | J5: 0.056 | L5: 0.1 | M5: 0.03 | P5: 0.1 | Q5: 0.1 | S5: =SUM(B5:R5) -> 0.585 | T5: =S5*16 -> 9.36 | U5: 2808 | V5: 4024.8 | W5: 2808 | X5: 2620.8 | Y5: 56.16 | Z5: 3294.72 | AA5: 177.84 | AB5: 327.6 | AC5: 561.6 | AD5: 664.56 | AE5: 140.4 | AF5: 215.28 | AG5: 205.92 | AH5: 177.84 | AI5: 84.24 | AJ5: 149.76 | AK5: 336.96 | AL5: 280.8 | AM5: 842.4 | AN5: 355.68 | AO5: 140.4 | AP5: 318.24 | AQ5: 308.88
A6: творог | K6: 0.047 | S6: =SUM(B6:R6) -> 0.047 | T6: 0.752 | U6: 225.6 | V6: 323.36 | W6: 225.6 | X6: 210.56 | Y6: 4.512 | Z6: 264.704 | AA6: 14.288 | AB6: 26.32 | AC6: 45.12 | AD6: 53.392 | AE6: 11.28 | AF6: 17.296 | AG6: 16.544 | AH6: 14.288 | AI6: 6.768 | AJ6: 12.032 | AK6: 27.072 | AL6: 22.56 | AM6: 67.68 | AN6: 28.576 | AO6: 11.28 | AP6: 25.568 | AQ6: 24.816
A7: сметана | D7: 0.01 | O7: 0.005 | R7: 0.01 | S7: =SUM(B7:R7) -> 0.025 | T7: 0.4 | U7: 120 | V7: 172 | W7: 120 | X7: 112 | Y7: 2.4 | Z7: 140.8 | AA7: 7.6 | AB7: 14 | AC7: 24 | AD7: 28.4 | AE7: 6 | AF7: 9.2 | AG7: 8.8 | AH7: 7.6 | AI7: 3.6 | AJ7: 6.4 | AK7: 14.4 | AL7: 12 | AM7: 36 | AN7: 15.2 | AO7: 6 | AP7: 13.6 | AQ7: 13.2
